bitfinex/quotes_BTCUSD_20220109
["timestamp","ask_amount","ask_price","bid_price","bid_amount"]
[1641769437689,0.013,42257.0,42254.0,0.16248087]
[1641769438491,0.0002058,42258.0,42254.0,0.15648087]
[1641769439331,0.0162058,42258.0,42254.0,0.16248087]
[1641769440033,0.016,42258.0,42254.0,0.16248087]
[1641769440232,0.0162058,42258.0,42254.0,0.16248087]
[1641769440432,0.0002058,42258.0,42254.0,0.10648087]
[1641769440934,0.0002058,42258.0,42248.0,0.38177384]
[1641769441134,0.059168,42253.0,42249.0,0.00702242]
[1641769441336,0.24402716,42252.0,42247.0,0.059167]
[1641769441545,0.00125742,42251.0,42245.0,0.00020217]
[1641769441741,0.00127012,42246.0,42245.0,0.00020217]
[1641769441938,0.94235307,42246.0,42245.0,0.00020217]
[1641769442138,1.67164523,42246.0,42245.0,0.00020217]
[1641769442336,1.42761807,42246.0,42245.0,0.00020217]
[1641769442596,1.47761807,42246.0,42243.0,0.00020221]
[1641769442795,0.385265,42245.0,42243.0,0.00020221]
[1641769443297,0.485265,42245.0,42243.0,0.00020221]
[1641769443493,0.485265,42245.0,42242.0,0.00020222]
[1641769443694,0.544451,42245.0,42242.0,0.00020222]
[1641769444094,0.24583232,42244.0,42242.0,0.00020222]
[1641769444298,0.635265,42243.0,42242.0,0.00020222]
[1641769444496,0.61828299,42243.0,42242.0,0.00020222]
[1641769444697,0.33301799,42243.0,42241.0,0.00020222]
[1641769444899,0.23301799,42243.0,42241.0,0.00020222]
[1641769445096,0.21598796,42246.0,42241.0,0.04754355]
[1641769445295,0.011,42243.0,42241.0,0.04754355]
[1641769445896,0.011,42243.0,42242.0,0.70917]
[1641769446096,0.011,42243.0,42242.0,0.75917]
[1641769446548,9.031e-05,42248.0,42242.0,0.75917]
[1641769446748,9.031e-05,42248.0,42246.0,0.0473344]
[1641769447146,0.00409031,42248.0,42246.0,0.0473344]
[1641769447346,0.00409031,42248.0,42246.0,0.3457985]
[1641769447546,0.00409031,42248.0,42246.0,0.0473344]
[1641769448147,0.00409031,42248.0,42245.0,0.10937019]
[1641769448347,0.004,42248.0,42245.0,0.05937019]
[1641769448950,0.004,42248.0,42245.0,0.00020219]
[1641769449149,0.70659157,42251.0,42245.0,0.05020219]
[1641769449348,0.002,42248.0,42245.0,0.05]
[1641769449553,0.002,42248.0,42244.0,0.0002022]
[1641769449948,0.061172,42248.0,42244.0,0.0002022]
[1641769450186,0.002,42248.0,42244.0,0.0002022]
[1641769450385,0.002,42248.0,42246.0,0.059168]
[1641769450585,0.70659157,42251.0,42246.0,0.059168]
[1641769450786,0.76576157,42251.0,42244.0,0.1685292]
[1641769451189,0.76876157,42251.0,42244.0,0.1685292]
[1641769451388,0.76876157,42251.0,42245.0,0.00020219]
[1641769451887,0.05917,42250.0,42247.0,0.04733467]
[1641769452287,0.70959157,42251.0,42247.0,0.04733467]
[1641769452487,0.70659157,42251.0,42247.0,0.04733467]
[1641769452687,0.70659157,42251.0,42246.0,0.05]
[1641769453090,0.70659157,42251.0,42245.0,0.00020219]
[1641769453289,0.70959157,42251.0,42245.0,0.00020219]
[1641769453689,0.76876257,42251.0,42245.0,0.00020219]
[1641769453933,0.059169,42250.0,42245.0,0.00020219]
[1641769455232,0.064169,42250.0,42245.0,0.00020219]
[1641769456437,0.059169,42250.0,42245.0,0.00020219]
[1641769457038,0.059169,42250.0,42246.0,0.059168]
[1641769457240,0.062169,42250.0,42246.0,0.059168]
[1641769457436,0.062169,42250.0,42245.0,0.00020219]
[1641769458498,0.059169,42250.0,42245.0,0.00020219]
[1641769459298,0.061169,42250.0,42245.0,0.00020219]
[1641769460502,0.059169,42250.0,42245.0,0.00020219]
[1641769461339,0.060169,42250.0,42245.0,0.00020219]
[1641769462337,0.26704005,42250.0,42245.0,0.00020219]
[1641769462542,0.26604005,42250.0,42245.0,0.00020219]
[1641769463338,0.26804005,42250.0,42245.0,0.00020219]
[1641769464541,0.26804005,42250.0,42245.0,0.00040438]
[1641769464742,0.26804005,42250.0,42245.0,0.00020219]
[1641769465091,0.26804005,42250.0,42247.0,0.04733474]
[1641769465290,0.27004005,42250.0,42247.0,0.04733474]
[1641769466488,0.26604005,42250.0,42247.0,0.04733474]
[1641769467390,0.27204005,42250.0,42247.0,0.04733474]
[1641769467597,0.006,42250.0,42247.0,0.10650074]
[1641769467991,0.006,42250.0,42247.0,0.15650074]
[1641769468693,0.38812987,42251.0,42247.0,0.05]
[1641769468948,0.38812987,42251.0,42245.0,0.00020219]
[1641769469144,0.38812987,42251.0,42248.0,0.059163]
[1641769469343,0.38912987,42251.0,42248.0,0.059163]
[1641769470449,0.38812987,42251.0,42248.0,0.059163]
[1641769471245,0.38912987,42251.0,42248.0,0.059163]
[1641769472690,0.38812987,42251.0,42248.0,0.059163]
[1641769473293,0.38912987,42251.0,42248.0,0.059163]
[1641769474493,0.38812987,42251.0,42248.0,0.059163]
[1641769475397,0.38912987,42251.0,42248.0,0.059163]
[1641769476439,0.38812987,42251.0,42248.0,0.059163]
[1641769477039,0.48812987,42251.0,42248.0,0.059163]
[1641769477340,0.48912987,42251.0,42248.0,0.059163]
[1641769477540,0.101,42251.0,42248.0,0.059163]
[1641769478043,0.001,42251.0,42248.0,0.059163]
[1641769479241,0.059167,42253.0,42248.0,0.059163]
[1641769479441,0.001,42251.0,42248.0,0.059163]
[1641769480988,0.001,42251.0,42249.0,0.05346883]
[1641769481189,0.00020579,42256.0,42255.0,3.13987603]
[1641769481587,0.00020579,42256.0,42255.0,3.18987603]
[1641769481788,0.00020579,42256.0,42255.0,3.48073258]
[1641769482388,0.0002058,42258.0,42255.0,3.48073258]
[1641769482791,0.0002058,42258.0,42255.0,3.18987603]
[1641769482990,0.0002058,42258.0,42255.0,0.109152]
[1641769483389,0.00020579,42259.0,42255.0,0.120152]
[1641769483591,0.00020579,42259.0,42255.0,0.070152]
[1641769483845,0.26731253,42258.0,42255.0,0.011]
[1641769484141,0.79746964,42257.0,42255.0,0.011]
[1641769484341,0.99402716,42256.0,42255.0,0.011]
[1641769484542,0.62929216,42256.0,42245.0,0.90661728]
[1641769484742,0.059169,42254.0,42247.0,0.04733483]
[1641769485343,0.062169,42254.0,42247.0,0.08733483]
[1641769485941,0.2727977,42250.0,42247.0,0.13733483]
[1641769486541,0.2727977,42250.0,42247.0,0.09733483]
[1641769487043,0.05917,42252.0,42247.0,0.04733483]
[1641769487442,0.001,42250.0,42247.0,0.10533483]
[1641769487687,0.46728302,42250.0,42247.0,0.10533483]
[1641769487890,0.25621926,42249.0,42247.0,0.10533483]
[1641769488291,0.46728302,42250.0,42247.0,0.10533483]
[1641769488688,0.46628302,42250.0,42247.0,0.04733483]
[1641769489491,0.46728302,42250.0,42247.0,0.10833483]
[1641769490694,0.46628302,42250.0,42247.0,0.04733483]
[1641769491347,0.46828302,42250.0,42247.0,0.09433483]
[1641769492549,0.46828302,42250.0,42247.0,0.04733483]
[1641769492754,0.46628302,42250.0,42245.0,0.00020219]
[1641769493150,0.56628302,42250.0,42245.0,0.00020219]
[1641769493351,0.56728302,42250.0,42245.0,0.05720219]
[1641769495191,0.56628302,42250.0,42245.0,0.00020219]
[1641769495391,0.57028302,42250.0,42245.0,0.03140438]
[1641769495593,0.059174,42249.0,42245.0,0.03120219]
[1641769495791,0.22332316,42248.0,42245.0,0.03120219]
[1641769496592,0.22332316,42248.0,42245.0,0.031]
[1641769496991,0.059178,42247.0,42244.0,0.0002022]
[1641769497191,0.059178,42246.0,42244.0,0.0002022]
[1641769497391,0.059178,42246.0,42245.0,0.034]
[1641769497594,0.32732316,42248.0,42245.0,0.034]
[1641769498392,0.38649916,42248.0,42245.0,0.034]
[1641769498591,0.35618546,42246.0,42243.0,0.0002022]
[1641769498853,0.28649916,42248.0,42244.0,0.0002022]
[1641769498854,0.38249916,42248.0,42244.0,0.0002022]
[1641769499453,0.38749916,42248.0,42244.0,0.0092022]
[1641769499852,0.3388367,42247.0,42244.0,0.0092022]
[1641769500054,0.4888367,42247.0,42244.0,0.0092022]
[1641769500458,0.00121657,42245.0,42244.0,0.0092022]
[1641769500654,1.22988937,42245.0,42244.0,0.0002022]
[1641769500854,0.877378,42244.0,42234.0,0.90641511]
[1641769501158,0.43452427,42235.0,42234.0,0.90641511]
[1641769501365,0.43452427,42235.0,42234.0,0.91841511]
[1641769501554,0.6547408,42235.0,42234.0,0.012]
[1641769501953,0.7547408,42235.0,42234.0,0.012]
[1641769502354,0.93951574,42235.0,42234.0,0.012]
[1641769502598,0.71929921,42235.0,42229.0,0.09469658]
[1641769502792,0.20913555,42234.0,42228.0,0.118373]
[1641769502993,0.20913555,42234.0,42227.0,0.04735637]
[1641769503191,0.20913555,42234.0,42228.0,0.059194]
[1641769503392,0.21181087,42234.0,42228.0,0.059194]
[1641769503596,0.21265554,42234.0,42228.0,0.059194]
[1641769503792,0.45587446,42234.0,42228.0,0.059194]
[1641769504194,0.45587446,42234.0,42222.0,0.90641511]
[1641769504195,0.55716267,42234.0,42222.0,0.12437717]
[1641769504395,0.60416267,42234.0,42222.0,0.05]
[1641769504593,0.60416267,42234.0,42220.0,0.95641511]
[1641769504594,0.00129866,42228.0,42220.0,0.95641511]
[1641769504792,0.00129866,42228.0,42220.0,0.90641511]
[1641769504996,0.30131358,42226.0,42220.0,0.28283701]
[1641769505193,0.30131358,42226.0,42220.0,0.34204201]
[1641769505395,0.05921,42225.0,42222.0,0.00020965]
[1641769505595,0.36052058,42226.0,42222.0,0.00020965]
[1641769505794,0.43032855,42227.0,42222.0,0.00020965]
[1641769505994,0.00729866,42228.0,42222.0,0.00020965]
[1641769506452,0.00729866,42228.0,42223.0,0.00020965]
[1641769506654,0.06050366,42228.0,42223.0,0.00020965]
[1641769506853,0.32871984,42226.0,42223.0,0.00020965]
[1641769507454,0.33771984,42226.0,42219.0,0.66906478]
[1641769507656,0.33771984,42226.0,42222.0,0.00020965]
[1641769508654,0.2162638,42225.0,42220.0,0.30599973]
[1641769508953,0.53997652,42226.0,42220.0,0.30599973]
[1641769509158,0.44250832,42227.0,42220.0,0.36520373]
[1641769509356,0.44250832,42227.0,42220.0,0.41520373]
[1641769509554,0.001,42226.0,42222.0,0.09471339]
[1641769509955,0.001,42226.0,42223.0,0.05]
[1641769510195,0.001,42226.0,42223.0,0.10753619]
[1641769510394,0.001,42226.0,42223.0,0.05753619]
[1641769510794,0.47845617,42233.0,42223.0,0.10489207]
[1641769510997,0.47845617,42233.0,42223.0,0.05753619]
[1641769511194,0.75519699,42233.0,42223.0,0.05]
[1641769511396,0.76319699,42233.0,42221.0,0.2074789]
[1641769511597,0.76319699,42233.0,42222.0,0.00680483]
[1641769511799,0.76319699,42233.0,42223.0,0.00577636]
[1641769511997,0.76319699,42233.0,42227.0,0.2130781]
[1641769512396,0.76319699,42233.0,42227.0,0.52025717]
[1641769512597,0.48645617,42233.0,42227.0,0.52025717]
[1641769512798,0.00021371,42236.0,42230.0,0.059191]
[1641769512998,0.00021371,42236.0,42232.0,0.04734726]
[1641769513298,0.00021372,42236.0,42232.0,0.16571126]
[1641769513498,0.01621372,42236.0,42219.0,0.66906478]
[1641769513698,0.01621372,42236.0,42219.0,0.67028525]
[1641769513699,0.00126589,42233.0,42219.0,0.67028525]
[1641769513945,0.00126589,42233.0,42223.0,0.607]
[1641769514348,0.00126589,42233.0,42224.0,0.27747314]
[1641769514544,0.24402716,42234.0,42224.0,0.27747314]
[1641769514744,0.10020542,42236.0,42224.0,0.27747314]
[1641769514946,0.00020542,42236.0,42229.0,0.05919]
[1641769515344,0.00020542,42236.0,42233.0,0.27690279]
[1641769515644,0.00020542,42236.0,42234.0,0.04734609]
[1641769515645,0.06120542,42236.0,42234.0,0.04734609]
[1641769516245,0.3,42235.0,42230.0,0.118369]
[1641769516445,0.3,42235.0,42230.0,0.168369]
[1641769516648,0.44227566,42237.0,42230.0,0.168369]
[1641769517146,0.44227566,42237.0,42232.0,0.24501499]
[1641769517346,0.44227566,42237.0,42233.0,0.059185]
[1641769517347,0.54227566,42237.0,42233.0,0.059185]
[1641769517600,0.00020573,42236.0,42233.0,0.059185]
[1641769518403,0.20692149,42236.0,42230.0,0.118369]
[1641769518604,0.20671576,42236.0,42226.0,0.118378]
[1641769518805,0.20671576,42236.0,42226.0,0.168378]
[1641769519003,0.059194,42234.0,42226.0,0.168378]
[1641769519202,0.059194,42234.0,42226.0,0.05]
[1641769519404,0.42159217,42230.0,42225.0,0.33074055]
[1641769519804,0.42159217,42230.0,42225.0,0.28074055]
[1641769520003,0.42159217,42230.0,42225.0,0.33074055]
[1641769520604,0.42159217,42230.0,42225.0,0.109197]
[1641769520806,0.00020587,42236.0,42221.0,0.00020142]
[1641769520807,0.00020587,42236.0,42222.0,0.00541916]
[1641769521006,0.00020587,42236.0,42223.0,0.00799173]
[1641769521206,0.00020587,42236.0,42225.0,0.00722074]
[1641769521448,0.00120587,42236.0,42226.0,0.00775315]
[1641769521651,0.24463644,42235.0,42230.0,0.09469748]
[1641769521849,0.00120587,42236.0,42231.0,0.00664817]
[1641769522048,0.00120586,42236.0,42232.0,0.00602442]
[1641769522749,0.00020586,42236.0,42232.0,0.00602442]
[1641769522948,0.00020586,42236.0,42233.0,0.04734937]
[1641769523149,0.00020587,42236.0,42233.0,0.04734937]
[1641769523448,0.01220587,42236.0,42233.0,0.04734937]
[1641769524050,0.262301,42236.0,42233.0,0.04734937]
[1641769524250,0.262301,42236.0,42231.0,0.05]
[1641769524251,0.32128813,42236.0,42231.0,0.05]
[1641769524451,0.53063419,42236.0,42231.0,0.05]
[1641769524652,0.385265,42235.0,42231.0,0.05]
[1641769525497,0.392265,42235.0,42231.0,0.05]
[1641769527097,0.007,42235.0,42231.0,0.05]
[1641769527299,0.61530887,42236.0,42230.0,0.09469748]
[1641769527500,0.007,42235.0,42230.0,0.09469748]
[1641769528399,0.31514608,42234.0,42230.0,0.09469748]
[1641769529546,0.32114608,42234.0,42231.0,0.05]
[1641769530248,0.40557515,42233.0,42231.0,0.05]
[1641769530750,0.40557515,42233.0,42221.0,0.00010182]
[1641769530751,0.037,42230.0,42221.0,0.00010182]
[1641769530949,0.28833591,42229.0,42221.0,0.00010182]
[1641769531149,0.0012772,42226.0,42221.0,0.00010182]
[1641769531349,0.70807722,42225.0,42221.0,0.00010182]
[1641769531549,0.85569176,42224.0,42221.0,0.02310182]
[1641769531749,0.047,42223.0,42221.0,0.02310182]
[1641769531949,0.7377444,42222.0,42221.0,0.0231976]
[1641769532249,0.7700094,42222.0,42221.0,0.0231976]
[1641769532451,0.8200094,42222.0,42221.0,0.0231976]
[1641769532699,0.7700094,42222.0,42221.0,0.0001976]
[1641769532895,0.7700094,42222.0,42219.0,0.66926239]
[1641769533097,0.385265,42221.0,42219.0,0.66926239]
[1641769533295,0.25342977,42220.0,42219.0,0.66926239]
[1641769533695,0.047,42220.0,42219.0,0.66926239]
[1641769534096,0.047,42220.0,42219.0,0.66906478]
[1641769535499,0.092,42220.0,42219.0,0.66906478]
[1641769536845,0.047,42220.0,42219.0,0.66906478]
[1641769537546,0.081,42220.0,42219.0,0.66906478]
[1641769538847,0.047,42220.0,42219.0,0.66906478]
[1641769539048,0.047,42220.0,42219.0,0.71906478]
[1641769539647,0.075,42220.0,42219.0,0.71906478]
[1641769539847,0.075,42220.0,42219.0,0.66906478]
[1641769540903,0.047,42220.0,42219.0,0.66906478]
[1641769541500,0.07,42220.0,42219.0,0.66906478]
[1641769542104,0.28252445,42220.0,42219.0,0.66906478]
[1641769542905,0.25952445,42220.0,42219.0,0.66906478]
[1641769543308,0.047,42220.0,42219.0,0.66906478]
[1641769543508,0.067,42220.0,42219.0,0.66906478]
[1641769543708,0.28023675,42220.0,42219.0,0.66906478]
[1641769543943,0.067,42220.0,42219.0,0.66906478]
[1641769544143,0.27940692,42220.0,42219.0,0.66906478]
[1641769544648,0.067,42220.0,42219.0,0.66906478]
[1641769544845,0.047,42220.0,42219.0,0.66906478]
[1641769545545,0.079,42220.0,42219.0,0.66906478]
[1641769546044,0.079,42220.0,42219.0,0.71906478]
[1641769547046,0.047,42220.0,42219.0,0.71906478]
[1641769547448,0.047,42220.0,42219.0,0.66906478]
[1641769547699,0.077,42220.0,42219.0,0.66906478]
[1641769548303,0.31966862,42220.0,42219.0,0.66906478]
[1641769548504,0.31966862,42220.0,42215.0,0.08333311]
[1641769548505,0.31966862,42220.0,42214.0,0.00033]
[1641769548506,0.77171908,42215.0,42214.0,0.00033]
[1641769548709,0.60452442,42211.0,42209.0,0.00055]
[1641769548901,0.88382255,42204.0,42202.0,0.33870834]
[1641769549101,0.88382255,42204.0,42196.0,1.08605]
[1641769549102,0.55,42198.0,42196.0,0.33063846]
[1641769549300,0.55,42198.0,42196.0,0.28176487]
[1641769549301,2.14895705,42197.0,42196.0,0.28176487]
[1641769549500,2.53422205,42197.0,42196.0,0.19298276]
[1641769549702,1.47391656,42197.0,42196.0,0.19298276]
[1641769550105,1.47391656,42197.0,42196.0,0.08878211]
[1641769550302,0.75,42196.0,42195.0,0.00077]
[1641769550504,1.135265,42195.0,42190.0,0.00044]
[1641769550708,1.135265,42195.0,42190.0,0.00011]
[1641769550709,1.134165,42195.0,42190.0,0.00011]
[1641769550910,1.134165,42195.0,42188.0,0.00022]
[1641769550911,0.01859,42190.0,42188.0,0.00022]
[1641769551103,1.182265,42189.0,42188.0,0.00022]
[1641769551343,0.506605,42189.0,42188.0,0.00022]
[1641769551544,0.606495,42189.0,42188.0,0.00022]
[1641769551948,0.04689,42189.0,42188.0,0.25022]
[1641769552144,0.04689,42189.0,42188.0,0.00022]
[1641769552544,0.04678,42189.0,42188.0,0.00022]
[1641769553045,0.04678,42189.0,42188.0,0.45157099]
[1641769553645,0.05178,42189.0,42188.0,0.75477136]
[1641769554245,0.05178,42189.0,42188.0,0.45157099]
[1641769554846,0.04678,42189.0,42188.0,0.45157099]
[1641769555299,0.04678,42189.0,42188.0,0.76463797]
[1641769555698,0.05078,42189.0,42188.0,0.76463797]
[1641769555897,0.436058,42189.0,42188.0,0.76463797]
[1641769556102,0.436058,42189.0,42188.0,0.45157099]
[1641769556998,0.63690545,42189.0,42188.0,0.45157099]
[1641769557598,0.65990545,42189.0,42188.0,0.45157099]
[1641769558199,0.75990545,42189.0,42188.0,0.45157099]
[1641769558844,0.73690545,42189.0,42188.0,0.45157099]
[1641769559442,0.73690545,42189.0,42188.0,0.00022]
[1641769559642,0.75590545,42189.0,42188.0,0.00022]
[1641769559941,1.10590545,42189.0,42188.0,0.00022]
[1641769560448,1.56769872,42189.0,42188.0,0.00022]
[1641769560844,1.54869872,42189.0,42188.0,0.00022]
[1641769561248,0.7514965,42185.0,42184.0,0.00033]
[1641769561446,1.1837745,42185.0,42184.0,0.00033]
[1641769561744,1.2837745,42185.0,42184.0,0.00033]
[1641769562148,1.08896962,42184.0,42183.0,0.00011]
[1641769562347,0.8477108,42180.0,42179.0,0.00033]
[1641769562600,0.38650022,42178.0,42175.0,0.00044]
[1641769562798,0.385278,42174.0,42165.0,0.00055]
[1641769562999,1.11958519,42173.0,42165.0,0.00055]
[1641769563197,1.11831519,42173.0,42165.0,0.00055]
[1641769563398,1.53157138,42173.0,42165.0,0.00055]
[1641769563598,1.60986313,42173.0,42165.0,0.00055]
[1641769563802,1.60986313,42173.0,42171.0,0.063619]
[1641769564000,0.52399392,42172.0,42171.0,0.00433]
[1641769564209,0.52399392,42172.0,42166.0,0.00022]
[1641769564210,0.75,42168.0,42166.0,0.00022]
[1641769564400,0.84860418,42161.0,42151.0,0.00433]
[1641769564602,0.75,42160.0,42159.0,0.00044]
[1641769564800,0.75,42160.0,42151.0,0.00433]
[1641769564801,0.385278,42157.0,42151.0,0.00433]
[1641769565000,1.42211936,42156.0,42151.0,0.00433]
[1641769565200,1.42211936,42156.0,42151.0,0.00515471]
[1641769565400,1.42211936,42156.0,42145.0,0.00033]
[1641769565401,1.135278,42152.0,42145.0,0.00033]
[1641769565601,0.385278,42148.0,42142.0,0.00011]
[1641769565804,0.385278,42148.0,42135.0,0.00022]
[1641769565805,0.385278,42148.0,42141.0,0.00098]
[1641769565806,0.02342,42145.0,42141.0,0.00098]
[1641769566103,0.381998,42144.0,42141.0,0.00098]
[1641769566362,0.63010021,42142.0,42141.0,0.00098]
[1641769566557,0.81237821,42142.0,42141.0,0.00098]
[1641769566756,0.81362295,42142.0,42141.0,0.00098]
[1641769566957,0.53352274,42142.0,42141.0,0.00098]
[1641769567160,0.53497622,42147.0,42141.0,0.00098]
[1641769567161,0.10128879,42148.0,42147.0,0.91307297]
[1641769567360,0.047,42159.0,42147.0,1.29836697]
[1641769567559,0.047,42164.0,42147.0,0.21427785]
[1641769567857,0.385294,42160.0,42152.0,0.059308]
[1641769568060,0.33287746,42164.0,42156.0,0.43035795]
[1641769568257,0.18005252,42159.0,42151.0,0.118616]
[1641769568459,0.45687569,42158.0,42147.0,0.16293297]
[1641769568658,0.45687569,42158.0,42147.0,0.15793297]
[1641769568862,0.23984136,42157.0,42147.0,0.15793297]
[1641769569059,2.17844129,42154.0,42147.0,0.15793297]
[1641769569260,0.05932356,42152.0,42147.0,0.15793297]
[1641769569460,0.385294,42151.0,42149.0,0.00020419]
[1641769569659,0.485294,42151.0,42149.0,0.00020419]
[1641769570304,0.744939,42151.0,42149.0,0.00020419]
[1641769570501,0.2108218,42150.0,42149.0,0.00020419]
[1641769570703,0.5961158,42150.0,42148.0,0.0002042]
[1641769570902,0.385294,42149.0,42148.0,0.0002042]
[1641769571101,0.69702452,42149.0,42148.0,0.0002042]
[1641769571506,0.485294,42149.0,42148.0,0.0002042]
[1641769571703,0.71413629,42149.0,42147.0,0.15793297]
[1641769571902,0.45079646,42148.0,42147.0,0.15793297]
[1641769572104,0.93609046,42148.0,42147.0,0.15793297]
[1641769572404,0.75,42147.0,42146.0,0.00020421]
[1641769572704,1.48189015,42147.0,42146.0,0.00020421]
[1641769573102,1.48189015,42147.0,42140.0,0.04693843]
[1641769573103,0.325972,42141.0,42140.0,0.04693843]
[1641769573306,0.385294,42141.0,42140.0,0.04693843]
[1641769573605,0.009,42141.0,42140.0,0.04193843]
[1641769574058,0.009,42141.0,42140.0,0.42723243]
[1641769574255,0.009,42141.0,42140.0,0.04193843]
[1641769574452,0.009,42141.0,42140.0,0.09193843]
[1641769574658,0.009,42141.0,42140.0,0.04193843]
[1641769574855,0.44839018,42143.0,42140.0,0.04193843]
[1641769575055,0.54839018,42143.0,42140.0,0.04193843]
[1641769575255,0.54839018,42143.0,42140.0,0.00033]
[1641769575456,0.54839018,42143.0,42138.0,0.059205]
[1641769575457,0.75,42141.0,42138.0,0.059205]
[1641769575657,0.113432,42131.0,42129.0,0.00022]
[1641769575859,0.113432,42131.0,42122.0,0.00044]
[1641769575860,0.75,42126.0,42122.0,0.00044]
[1641769576058,0.75,42126.0,42120.0,0.00033]
[1641769576059,2.384294,42122.0,42116.0,0.00022]
[1641769576259,2.384294,42122.0,42116.0,0.00011]
[1641769576260,1.49686964,42119.0,42116.0,0.00011]
[1641769576455,1.49686964,42119.0,42106.0,0.059598]
[1641769576456,0.33203241,42113.0,42106.0,0.059598]
[1641769576660,0.32360516,42110.0,42106.0,0.00022]
[1641769576855,0.62147506,42109.0,42106.0,0.00022]
[1641769577054,0.77147506,42109.0,42106.0,0.00022]
[1641769577254,0.535294,42109.0,42106.0,0.00042351]
[1641769577460,0.385294,42107.0,42106.0,0.00042351]
[1641769577701,0.432294,42107.0,42106.0,0.00042351]
[1641769577900,0.047,42107.0,42106.0,0.00042351]
[1641769578100,0.009,42109.0,42106.0,0.00042351]
[1641769578300,0.009,42109.0,42107.0,0.385294]
[1641769578503,0.009,42109.0,42108.0,0.26085665]
[1641769578700,0.009,42109.0,42108.0,1.0791367]
[1641769579000,2.13853742,42114.0,42108.0,1.1291367]
[1641769579204,2.13853742,42114.0,42110.0,0.059363]
[1641769579400,0.385294,42113.0,42110.0,0.059363]
[1641769579903,9.031e-05,42124.0,42114.0,0.88143433]
[1641769580107,9.031e-05,42124.0,42115.0,0.31012628]
[1641769580301,0.113432,42131.0,42119.0,0.059346]
[1641769580504,0.113432,42131.0,42128.0,0.39704326]
[1641769580801,0.113432,42131.0,42129.0,0.31794846]
[1641769581642,0.134432,42131.0,42129.0,0.31794846]
[1641769581850,0.134432,42131.0,42130.0,0.435294]
[1641769582240,0.134432,42131.0,42130.0,0.385294]
[1641769582642,0.134432,42131.0,42130.0,0.67559659]
[1641769582845,0.134432,42131.0,42130.0,0.63885659]
[1641769583042,0.113432,42131.0,42130.0,0.63885659]
[1641769583742,0.147432,42131.0,42130.0,0.64585659]
[1641769583942,0.147432,42131.0,42130.0,0.007]
[1641769584145,0.147432,42131.0,42130.0,0.00622]
[1641769584945,0.113432,42131.0,42130.0,0.349992]
[1641769585596,0.113432,42131.0,42130.0,0.449992]
[1641769585801,0.122432,42131.0,42130.0,0.9293955]
[1641769585995,0.0059,42133.0,42130.0,0.9293955]
[1641769585996,0.0059,42133.0,42131.0,0.854432]
[1641769586198,0.00020638,42148.0,42133.0,0.75]
[1641769586396,0.00020638,42148.0,42142.0,0.059312]
[1641769586598,0.00020638,42148.0,42146.0,0.1]
[1641769586796,0.00020638,42148.0,42147.0,1.14860904]
[1641769586999,0.00020638,42148.0,42147.0,0.84860904]
[1641769587196,0.00020641,42149.0,42147.0,0.047]
[1641769587399,0.00020641,42149.0,42145.0,0.059301]
[1641769587595,0.33855606,42148.0,42145.0,0.059301]
[1641769587797,0.33855606,42148.0,42147.0,0.041]
[1641769587999,0.95808264,42148.0,42147.0,0.041]
[1641769588199,1.36063784,42148.0,42147.0,0.041]
[1641769588398,1.46363784,42148.0,42147.0,0.041]
[1641769588858,0.30506522,42140.0,42134.0,0.40412874]
[1641769589058,0.30506522,42140.0,42132.0,0.00078607]
[1641769589059,0.23420958,42139.0,42132.0,0.00078607]
[1641769589259,0.23420958,42139.0,42132.0,0.118657]
[1641769589458,0.1,42140.0,42132.0,0.118657]
[1641769589662,0.445317,42139.0,42132.0,0.168657]
[1641769589857,0.9547744,42139.0,42134.0,0.33735811]
[1641769590066,0.45749756,42137.0,42134.0,0.33735811]
[1641769590260,1.72879671,42138.0,42134.0,0.39669011]
[1641769590461,0.06,42139.0,42134.0,0.39669011]
[1641769590860,0.06,42139.0,42135.0,0.349942]
[1641769591061,0.06,42139.0,42136.0,0.118634]
[1641769591260,0.06,42139.0,42137.0,0.349922]
[1641769591659,0.017,42139.0,42138.0,0.24298499]
[1641769591859,0.017,42139.0,42138.0,0.59289699]
[1641769592264,0.017,42139.0,42138.0,0.64289699]
[1641769592898,0.05,42140.0,42138.0,0.64289699]
[1641769593099,0.05,42140.0,42139.0,0.349903]
[1641769593499,0.05,42140.0,42137.0,0.059316]
[1641769593700,0.089,42140.0,42139.0,0.005]
[1641769594299,0.474317,42140.0,42139.0,0.005]
[1641769594505,1.11678782,42140.0,42139.0,0.005]
[1641769594702,0.75,42139.0,42137.0,0.0002028]
[1641769594905,1.38063611,42138.0,42137.0,0.0004056]
[1641769595100,2.77963611,42138.0,42137.0,0.0002028]
[1641769595400,1.81128834,42138.0,42137.0,0.0002028]
[1641769595601,1.14455781,42137.0,42130.0,0.00081134]
[1641769595799,0.32827628,42135.0,42130.0,0.00081134]
[1641769596001,0.32827628,42135.0,42129.0,0.00082727]
[1641769596002,0.36676536,42133.0,42129.0,0.00082727]
[1641769596200,1.1496247,42132.0,42129.0,0.00082727]
[1641769596651,1.2996247,42132.0,42129.0,0.00082727]
[1641769597052,0.7496247,42132.0,42125.0,0.118678]
[1641769597252,0.7496247,42132.0,42117.0,0.25872635]
[1641769597253,1.9986247,42132.0,42117.0,0.25872635]
[1641769597454,1.9986247,42132.0,42117.0,0.65028209]
[1641769597455,0.7966247,42132.0,42117.0,0.65028209]
[1641769597655,0.81652658,42132.0,42117.0,0.39155574]
[1641769597853,0.82852658,42132.0,42117.0,0.39155574]
[1641769598054,0.82852658,42132.0,42119.0,0.28317664]
[1641769598252,1.144317,42132.0,42129.0,0.00010418]
[1641769598652,0.594317,42132.0,42129.0,0.05944518]
[1641769598852,0.544317,42132.0,42129.0,0.00010418]
[1641769599051,0.532317,42132.0,42129.0,0.00010418]
[1641769599251,0.532317,42132.0,42129.0,0.00020836]
[1641769599453,0.532317,42132.0,42129.0,0.00010418]
[1641769599751,0.555317,42132.0,42130.0,0.29825497]
[1641769599958,0.023,42132.0,42131.0,0.154432]
[1641769600206,0.023,42132.0,42131.0,0.454414]
[1641769601008,0.28065223,42138.0,42133.0,0.059333]
[1641769601207,0.40671894,42139.0,42133.0,0.059333]
[1641769601409,0.40671894,42139.0,42131.0,0.53020347]
[1641769601410,0.385317,42138.0,42131.0,0.53020347]
[1641769601605,0.385317,42138.0,42133.0,0.00020234]
[1641769601606,0.485317,42138.0,42133.0,0.00020234]